[Event "*** Qualifier 3: Titled Tuesday 3|2 Blitz"]
[Site "Chess.com"]
[Date "2017.04.18"]
[Round "3"]
[White "Robin-Side"]
[Black "ChristopherYoo"]
[Result "0-1"]
[WhiteElo "2318"]
[BlackElo "2264"]
[TimeControl "180+2"]
[EndTime "13:40:26 PDT"]
[Termination "ChristopherYoo won by resignation"]

1. e4 {[%clk 0:03:02]} 1... c5 {[%clk 0:03:00.5]} 2. Nf3 {[%clk 0:03:02.6]} 2...
d6 {[%clk 0:03:01.8]} 3. d4 {[%clk 0:03:03.1]} 3... cxd4 {[%clk 0:03:02.9]} 4.
Nxd4 {[%clk 0:03:04.9]} 4... Nf6 {[%clk 0:03:04.1]} 5. Nc3 {[%clk 0:03:05.8]}
5... a6 {[%clk 0:03:05.3]} 6. Be2 {[%clk 0:03:06.4]} 6... e6 {[%clk 0:03:04.2]}
7. O-O {[%clk 0:03:03.9]} 7... Be7 {[%clk 0:03:01.7]} 8. Kh1 {[%clk 0:03:00.1]}
8... b5 {[%clk 0:02:58.6]} 9. a3 {[%clk 0:02:32]} 9... Bb7 {[%clk 0:02:57.9]}
10. Bd3 {[%clk 0:02:19.2]} 10... O-O {[%clk 0:02:50]} 11. f4 {[%clk 0:02:17.2]}
11... Qc7 {[%clk 0:02:49.3]} 12. Be3 {[%clk 0:02:12]} 12... Nbd7 {[%clk
0:02:45.8]} 13. Qe1 {[%clk 0:01:58.7]} 13... Rfe8 {[%clk 0:02:18.5]} 14. Qg3
{[%clk 0:01:24.8]} 14... Bf8 {[%clk 0:02:19.2]} 15. Rae1 {[%clk 0:01:21.9]}
15... e5 {[%clk 0:01:54.3]} 16. Nf5 {[%clk 0:01:17.1]} 16... exf4 {[%clk
0:01:26]} 17. Bxf4 {[%clk 0:01:01.8]} 17... Ne5 {[%clk 0:01:23.8]} 18. Bg5
{[%clk 0:00:46.1]} 18... Nh5 {[%clk 0:00:51.1]} 19. Qh3 {[%clk 0:00:34.4]} 19...
g6 {[%clk 0:00:46.1]} 20. Nh6+ {[%clk 0:00:26.2]} 20... Bxh6 {[%clk 0:00:44.6]}
21. Bxh6 {[%clk 0:00:27.3]} 21... Bc8 {[%clk 0:00:43.3]} 22. Qh4 {[%clk
0:00:14.9]} 22... Ng4 {[%clk 0:00:38.4]} 23. Nd5 {[%clk 0:00:13.6]} 23... Qb7
{[%clk 0:00:23.2]} 24. h3 {[%clk 0:00:13.9]} 24... Nxh6 {[%clk 0:00:22.8]} 25.
g4 {[%clk 0:00:11.4]} 25... Be6 {[%clk 0:00:17.8]} 26. gxh5 {[%clk 0:00:08.6]}
26... Bxd5 {[%clk 0:00:18.8]} 27. hxg6 {[%clk 0:00:09.3]} 27... fxg6 {[%clk
0:00:19.1]} 28. Qxh6 {[%clk 0:00:09.4]} 28... Bxe4+ {[%clk 0:00:18.4]} 29. Bxe4
{[%clk 0:00:09.7]} 29... Rxe4 {[%clk 0:00:19.5]} 30. Rxe4 {[%clk 0:00:10.3]}
30... Qxe4+ {[%clk 0:00:20]} 31. Kg1 {[%clk 0:00:10.4]} 31... Qd4+ {[%clk
0:00:20.8]} 32. Kh1 {[%clk 0:00:10.3]} 32... Qe4+ {[%clk 0:00:21.1]} 33. Kg1
{[%clk 0:00:10.9]} 33... Qxc2 {[%clk 0:00:20.9]} 34. Qe3 {[%clk 0:00:06.9]}
34... Qc5 {[%clk 0:00:21]} 35. Qxc5 {[%clk 0:00:07.5]} 35... dxc5 {[%clk
0:00:22]} 36. Rf6 {[%clk 0:00:08.6]} 36... c4 {[%clk 0:00:20]} 37. Rc6 {[%clk
0:00:09.2]} 37... Ra7 {[%clk 0:00:19.4]} 38. Kg2 {[%clk 0:00:10.2]} 38... Kf7
{[%clk 0:00:20.4]} 39. Kg3 {[%clk 0:00:10]} 39... Ke7 {[%clk 0:00:19.3]} 40. Kf4
{[%clk 0:00:09.6]} 40... Kd7 {[%clk 0:00:18.1]} 41. Rc5 {[%clk 0:00:10.1]} 41...
Rc7 {[%clk 0:00:17.7]} 42. Rd5+ {[%clk 0:00:11]} 42... Ke6 {[%clk 0:00:18.5]}
43. Re5+ {[%clk 0:00:12.1]} 43... Kf6 {[%clk 0:00:19.5]} 44. Rd5 {[%clk
0:00:13.3]} 44... Rc6 {[%clk 0:00:17.9]} 45. h4 {[%clk 0:00:14.1]} 45... h6
{[%clk 0:00:18.4]} 46. Rd8 {[%clk 0:00:14]} 46... Ke7 {[%clk 0:00:17.4]} 47. Rh8
{[%clk 0:00:12.3]} 47... Kf7 {[%clk 0:00:14.3]} 48. Rxh6 {[%clk 0:00:11.5]}
48... Kg7 {[%clk 0:00:15]} 0-1

[Event "*** Qualifier 3: Titled Tuesday 3|2 Blitz"]
[Site "Chess.com"]
[Date "2017.04.18"]
[Round "3"]
[White "A-Fier"]
[Black "Paralinch"]
[Result "1-0"]
[WhiteElo "2520"]
[BlackElo "2684"]
[TimeControl "180+2"]
[EndTime "13:40:30 PDT"]
[Termination "A-Fier won by resignation"]

1. d4 {[%clk 0:03:02]} 1... d5 {[%clk 0:03:01.1]} 2. c4 {[%clk 0:02:59.6]} 2...
dxc4 {[%clk 0:03:03]} 3. e4 {[%clk 0:02:59.7]} 3... e5 {[%clk 0:03:04.2]} 4. Nf3
{[%clk 0:03:00.8]} 4... exd4 {[%clk 0:03:05.6]} 5. Bxc4 {[%clk 0:03:02.2]} 5...
Bb4+ {[%clk 0:03:06.6]} 6. Nbd2 {[%clk 0:03:01.5]} 6... Nc6 {[%clk 0:03:07.2]}
7. O-O {[%clk 0:02:59]} 7... Nf6 {[%clk 0:03:08.4]} 8. e5 {[%clk 0:02:59.2]}
8... Nd5 {[%clk 0:03:09.6]} 9. Qb3 {[%clk 0:02:59.8]} 9... Na5 {[%clk
0:03:00.2]} 10. Qa4+ {[%clk 0:02:58.5]} 10... Bd7 {[%clk 0:02:59.5]} 11. Qc2
{[%clk 0:02:49.5]} 11... Nxc4 {[%clk 0:02:57]} 12. Qxc4 {[%clk 0:02:50.5]} 12...
Bxd2 {[%clk 0:02:38.8]} 13. Bxd2 {[%clk 0:02:49.3]} 13... Nb6 {[%clk 0:02:39.7]}
14. Qc5 {[%clk 0:02:45.3]} 14... Bc6 {[%clk 0:02:25.6]} 15. Nxd4 {[%clk
0:02:34]} 15... Qd5 {[%clk 0:02:24]} 16. Qxd5 {[%clk 0:02:35.2]} 16... Bxd5
{[%clk 0:02:25.3]} 17. Nb5 {[%clk 0:02:32.4]} 17... Kd7 {[%clk 0:02:16.1]} 18.
Be3 {[%clk 0:02:27.6]} 18... Nc4 {[%clk 0:02:05.8]} 19. Bd4 {[%clk 0:02:24.1]}
19... Bc6 {[%clk 0:01:52]} 20. Nxa7 {[%clk 0:02:09.7]} 20... Rxa7 {[%clk
0:01:53.2]} 21. Bxa7 {[%clk 0:02:10]} 21... b6 {[%clk 0:01:54.6]} 22. Rfd1+
{[%clk 0:02:04.9]} 22... Kc8 {[%clk 0:01:12.1]} 23. Rdc1 {[%clk 0:02:02.2]}
23... Bd5 {[%clk 0:00:41.5]} 24. b3 {[%clk 0:01:58.9]} 24... Nxe5 {[%clk
0:00:42.6]} 25. Bxb6 {[%clk 0:02:00]} 25... c6 {[%clk 0:00:44]} 26. Bd4 {[%clk
0:02:00.9]} 26... Nd3 {[%clk 0:00:45.3]} 27. Rd1 {[%clk 0:01:58.6]} 27... Nf4
{[%clk 0:00:46.5]} 28. Be5 {[%clk 0:01:50.8]} 28... Ng6 {[%clk 0:00:43]} 29.
Bxg7 {[%clk 0:01:49.6]} 29... Rg8 {[%clk 0:00:44]} 30. Bf6 {[%clk 0:01:45.1]}
30... Nf4 {[%clk 0:00:44.9]} 31. g3 {[%clk 0:01:42.4]} 31... Rg6 {[%clk
0:00:39.9]} 32. Be5 {[%clk 0:01:29.5]} 32... Nh3+ {[%clk 0:00:41.1]} 33. Kf1
{[%clk 0:01:30.2]} 33... Ng5 {[%clk 0:00:43]} 34. Rac1 {[%clk 0:01:27.3]} 34...
Kb7 {[%clk 0:00:43.9]} 35. Rxd5 {[%clk 0:00:54.3]} 35... cxd5 {[%clk 0:00:45.8]}
36. Kg2 {[%clk 0:00:55.3]} 36... Ne6 {[%clk 0:00:42]} 37. f4 {[%clk 0:00:53.8]}
37... f5 {[%clk 0:00:38.8]} 38. b4 {[%clk 0:00:51.4]} 38... Rg8 {[%clk
0:00:38.4]} 39. a4 {[%clk 0:00:51.8]} 39... d4 {[%clk 0:00:35.8]} 40. Kf3 {[%clk
0:00:46.8]} 40... Rd8 {[%clk 0:00:36.3]} 41. Ke2 {[%clk 0:00:47.4]} 41... h5
{[%clk 0:00:32.9]} 42. Kd3 {[%clk 0:00:47.6]} 42... h4 {[%clk 0:00:33.3]} 43.
gxh4 {[%clk 0:00:46]} 43... Rg8 {[%clk 0:00:33.5]} 44. b5 {[%clk 0:00:43.6]}
44... Rg4 {[%clk 0:00:32.4]} 45. a5 {[%clk 0:00:44]} 45... Rxh4 {[%clk
0:00:31.9]} 46. Rc6 {[%clk 0:00:38]} 46... Rh3+ {[%clk 0:00:33.1]} 47. Kc4
{[%clk 0:00:31.9]} 47... Rh6 {[%clk 0:00:18.1]} 48. a6+ {[%clk 0:00:31.3]} 48...
Ka7 {[%clk 0:00:19]} 49. Bxd4+ {[%clk 0:00:32.6]} 49... Kb8 {[%clk 0:00:20.4]}
50. a7+ {[%clk 0:00:31.5]} 50... Kb7 {[%clk 0:00:21.4]} 51. Rb6+ {[%clk
0:00:30.8]} 1-0

[Event "*** Qualifier 3: Titled Tuesday 3|2 Blitz"]
[Site "Chess.com"]
[Date "2017.04.18"]
[Round "3"]
[White "gmcorrales"]
[Black "RobertoJBM"]
[Result "0-1"]
[WhiteElo "2601"]
[BlackElo "2418"]
[TimeControl "180+2"]
[EndTime "13:40:30 PDT"]
[Termination "RobertoJBM won on time"]

1. g3 {[%clk 0:02:58.5]} 1... d5 {[%clk 0:03:00.2]} 2. Bg2 {[%clk 0:02:59.4]}
2... c6 {[%clk 0:03:02.1]} 3. Nf3 {[%clk 0:02:59.8]} 3... Bg4 {[%clk 0:03:02.9]}
4. O-O {[%clk 0:03:00.8]} 4... Nd7 {[%clk 0:03:03.9]} 5. d4 {[%clk 0:03:00.7]}
5... e6 {[%clk 0:03:04.9]} 6. b3 {[%clk 0:03:01.7]} 6... Bd6 {[%clk 0:03:05.5]}
7. c4 {[%clk 0:02:59.1]} 7... Qe7 {[%clk 0:03:05.9]} 8. Nc3 {[%clk 0:02:59.6]}
8... Ngf6 {[%clk 0:03:06.2]} 9. Bg5 {[%clk 0:03:00.2]} 9... h6 {[%clk 0:03:07]}
10. Bxf6 {[%clk 0:02:59.8]} 10... Nxf6 {[%clk 0:03:06.5]} 11. e3 {[%clk
0:03:01.7]} 11... Ne4 {[%clk 0:03:06.5]} 12. Qc2 {[%clk 0:02:50.8]} 12... Nxc3
{[%clk 0:03:05.1]} 13. Qxc3 {[%clk 0:02:51.7]} 13... Bxf3 {[%clk 0:03:05.6]} 14.
Bxf3 {[%clk 0:02:52.6]} 14... O-O {[%clk 0:03:05.5]} 15. c5 {[%clk 0:02:52.5]}
15... Bc7 {[%clk 0:03:05.9]} 16. b4 {[%clk 0:02:53.8]} 16... e5 {[%clk
0:03:03.7]} 17. Rab1 {[%clk 0:02:54.5]} 17... a6 {[%clk 0:02:56.5]} 18. a4
{[%clk 0:02:47.8]} 18... e4 {[%clk 0:02:52.9]} 19. Bg2 {[%clk 0:02:48.1]} 19...
f5 {[%clk 0:02:54.2]} 20. b5 {[%clk 0:02:49]} 20... axb5 {[%clk 0:02:55.3]} 21.
axb5 {[%clk 0:02:49.9]} 21... g5 {[%clk 0:02:49.3]} 22. bxc6 {[%clk 0:02:48.8]}
22... bxc6 {[%clk 0:02:50]} 23. Rb7 {[%clk 0:02:48.2]} 23... Rf7 {[%clk
0:02:50]} 24. Ra1 {[%clk 0:02:25.8]} 24... Rxa1+ {[%clk 0:02:35.3]} 25. Qxa1
{[%clk 0:02:26]} 25... f4 {[%clk 0:02:34.9]} 26. Qa8+ {[%clk 0:02:18.8]} 26...
Kg7 {[%clk 0:02:32.9]} 27. Qc8 {[%clk 0:02:18.2]} 27... fxe3 {[%clk 0:02:22.4]}
28. fxe3 {[%clk 0:02:18.1]} 28... Qf6 {[%clk 0:02:18.1]} 29. Kh1 {[%clk
0:01:48.3]} 29... Qf2 {[%clk 0:02:01.9]} 30. Rb1 {[%clk 0:01:28.8]} 30... Qxe3
{[%clk 0:02:02.6]} 31. Qe6 {[%clk 0:01:27.3]} 31... Qd3 {[%clk 0:01:50.8]} 32.
Rg1 {[%clk 0:00:53.1]} 32... Qxd4 {[%clk 0:01:44.9]} 33. Qxc6 {[%clk 0:00:33.1]}
33... Ba5 {[%clk 0:01:40.5]} 34. Qb5 {[%clk 0:00:25]} 34... Bb4 {[%clk
0:01:35.7]} 35. c6 {[%clk 0:00:23.4]} 35... Bc5 {[%clk 0:01:36.4]} 36. Rb1
{[%clk 0:00:22.2]} 36... Bd6 {[%clk 0:01:30.9]} 37. Qe2 {[%clk 0:00:17.9]} 37...
Bc7 {[%clk 0:01:29]} 38. Qe1 {[%clk 0:00:15.5]} 38... Qe5 {[%clk 0:01:27.7]} 39.
Rc1 {[%clk 0:00:11.2]} 39... Re7 {[%clk 0:01:27.5]} 40. Qe2 {[%clk 0:00:10]}
40... d4 {[%clk 0:01:28.5]} 41. Rf1 {[%clk 0:00:10]} 41... d3 {[%clk 0:01:28.9]}
42. Qf2 {[%clk 0:00:10.7]} 42... Kh7 {[%clk 0:00:52.3]} 43. Qf8 {[%clk
0:00:10.7]} 43... Qe6 {[%clk 0:00:49]} 44. Bxe4+ {[%clk 0:00:03.3]} 44... Qxe4+
{[%clk 0:00:49.1]} 45. Kg1 {[%clk 0:00:04.4]} 45... Bb6+ {[%clk 0:00:49.5]} 46.
Rf2 {[%clk 0:00:05.1]} 46... Qe1+ {[%clk 0:00:48.6]} 47. Kg2 {[%clk 0:00:06]}
47... Qxf2+ {[%clk 0:00:49.9]} 48. Qxf2 {[%clk 0:00:06.5]} 48... Bxf2 {[%clk
0:00:51.8]} 49. Kxf2 {[%clk 0:00:06.8]} 49... Rc7 {[%clk 0:00:52.1]} 50. Ke3
{[%clk 0:00:07]} 50... Rxc6 {[%clk 0:00:54]} 51. Kxd3 {[%clk 0:00:08.7]} 51...
Ra6 {[%clk 0:00:55]} 52. Ke4 {[%clk 0:00:09.4]} 52... Ra2 {[%clk 0:00:56.9]} 53.
h4 {[%clk 0:00:10]} 53... Rh2 {[%clk 0:00:58.8]} 0-1

[Event "*** Qualifier 3: Titled Tuesday 3|2 Blitz"]
[Site "Chess.com"]
[Date "2017.04.18"]
[Round "3"]
[White "Sanan_Sjugirov"]
[Black "Vamostodorecto"]
[Result "1-0"]
[WhiteElo "2659"]
[BlackElo "2382"]
[TimeControl "180+2"]
[EndTime "13:40:32 PDT"]
[Termination "Sanan_Sjugirov won by resignation"]

1. d4 {[%clk 0:03:02]} 1... d5 {[%clk 0:03:00.2]} 2. Nf3 {[%clk 0:03:03]} 2...
Nc6 {[%clk 0:03:01.7]} 3. Bf4 {[%clk 0:03:02]} 3... Bg4 {[%clk 0:03:02.3]} 4. e3
{[%clk 0:03:02.4]} 4... e6 {[%clk 0:03:02.3]} 5. Nbd2 {[%clk 0:03:01.9]} 5...
Bd6 {[%clk 0:03:01.6]} 6. Bg3 {[%clk 0:02:56.5]} 6... Nge7 {[%clk 0:02:51]} 7.
c4 {[%clk 0:02:50.9]} 7... O-O {[%clk 0:02:46.3]} 8. Be2 {[%clk 0:02:48.4]} 8...
a6 {[%clk 0:02:36]} 9. O-O {[%clk 0:02:48.4]} 9... Nf5 {[%clk 0:02:27.8]} 10.
Bxd6 {[%clk 0:02:48.3]} 10... Qxd6 {[%clk 0:02:27.3]} 11. h3 {[%clk 0:02:35.6]}
11... Bxf3 {[%clk 0:02:26.1]} 12. Nxf3 {[%clk 0:02:37.5]} 12... f6 {[%clk
0:02:22.6]} 13. Rc1 {[%clk 0:02:29.2]} 13... Rad8 {[%clk 0:02:18.3]} 14. Qc2
{[%clk 0:02:23.3]} 14... Nfe7 {[%clk 0:02:15.5]} 15. a3 {[%clk 0:02:16.1]} 15...
dxc4 {[%clk 0:02:10.1]} 16. Bxc4 {[%clk 0:02:15.9]} 16... Kh8 {[%clk 0:02:10.7]}
17. Bd3 {[%clk 0:02:11]} 17... e5 {[%clk 0:02:08.5]} 18. Rfd1 {[%clk 0:01:32.3]}
18... exd4 {[%clk 0:02:06.6]} 19. exd4 {[%clk 0:01:31.9]} 19... g6 {[%clk
0:01:49.5]} 20. Be4 {[%clk 0:01:29.8]} 20... Nd5 {[%clk 0:01:44.6]} 21. Qb3
{[%clk 0:01:23.7]} 21... Na5 {[%clk 0:01:32.2]} 22. Qxd5 {[%clk 0:01:20.8]}
22... Qxd5 {[%clk 0:01:29.2]} 23. Bxd5 {[%clk 0:01:22.7]} 23... Rxd5 {[%clk
0:01:30.6]} 24. Rxc7 {[%clk 0:01:23.6]} 24... Kg8 {[%clk 0:01:24.6]} 25. Re1
{[%clk 0:01:22.4]} 25... Rf7 {[%clk 0:01:24.8]} 26. Re8+ {[%clk 0:01:17]} 26...
Kg7 {[%clk 0:01:24]} 27. Ree7 {[%clk 0:01:15.4]} 27... Rxe7 {[%clk 0:01:22.7]}
28. Rxe7+ {[%clk 0:01:17.3]} 28... Kh6 {[%clk 0:01:24]} 29. g4 {[%clk
0:01:08.3]} 29... b5 {[%clk 0:01:20.7]} 30. h4 {[%clk 0:01:04.1]} 30... Nc6
{[%clk 0:01:15.1]} 31. Re4 {[%clk 0:00:42.5]} 31... f5 {[%clk 0:01:09.2]} 32.
gxf5 {[%clk 0:00:40]} 32... Rxf5 {[%clk 0:01:11.1]} 33. Kg2 {[%clk 0:00:41.1]}
33... Rd5 {[%clk 0:01:08.1]} 34. b4 {[%clk 0:00:37.8]} 34... Kh5 {[%clk
0:00:56]} 35. Kg3 {[%clk 0:00:37.5]} 35... h6 {[%clk 0:00:56.1]} 36. Kf4 {[%clk
0:00:33.9]} 36... g5+ {[%clk 0:00:51.8]} 37. hxg5 {[%clk 0:00:35.2]} 37... hxg5+
{[%clk 0:00:53.7]} 38. Ke3 {[%clk 0:00:36.5]} 38... a5 {[%clk 0:00:44.7]} 39.
Re6 {[%clk 0:00:31.5]} 39... Nd8 {[%clk 0:00:37.5]} 40. Re5 {[%clk 0:00:29.5]}
40... Rxe5+ {[%clk 0:00:29.4]} 41. Nxe5 {[%clk 0:00:31.4]} 41... axb4 {[%clk
0:00:30.6]} 42. axb4 {[%clk 0:00:32.9]} 42... g4 {[%clk 0:00:28.9]} 43. d5
{[%clk 0:00:30.4]} 43... Kg5 {[%clk 0:00:28.4]} 44. Ke4 {[%clk 0:00:24.9]} 44...
Nb7 {[%clk 0:00:28.3]} 45. Nd3 {[%clk 0:00:19.9]} 45... Nd6+ {[%clk 0:00:27.9]}
46. Ke5 {[%clk 0:00:21]} 46... Nc4+ {[%clk 0:00:28.1]} 47. Ke6 {[%clk
0:00:22.2]} 47... g3 {[%clk 0:00:19.8]} 48. fxg3 {[%clk 0:00:22.4]} 48... Kg4
{[%clk 0:00:18.3]} 49. d6 {[%clk 0:00:20.7]} 49... Nb6 {[%clk 0:00:18.1]} 50. d7
{[%clk 0:00:20.8]} 50... Nxd7 {[%clk 0:00:17.3]} 51. Kxd7 {[%clk 0:00:22.7]}
51... Kxg3 {[%clk 0:00:19.2]} 52. Kc6 {[%clk 0:00:23.9]} 1-0

[Event "*** Qualifier 3: Titled Tuesday 3|2 Blitz"]
[Site "Chess.com"]
[Date "2017.04.18"]
[Round "3"]
[White "PHOENIXME"]
[Black "chesstatour"]
[Result "1-0"]
[WhiteElo "1917"]
[BlackElo "1956"]
[TimeControl "180+2"]
[EndTime "13:40:32 PDT"]
[Termination "PHOENIXME won on time"]

1. e4 {[%clk 0:02:51.2]} 1... c6 {[%clk 0:02:59.8]} 2. d4 {[%clk 0:02:50.6]}
2... d5 {[%clk 0:03:01.7]} 3. e5 {[%clk 0:02:51.6]} 3... c5 {[%clk 0:03:02.4]}
4. c3 {[%clk 0:02:49.8]} 4... Nc6 {[%clk 0:03:02.1]} 5. h3 {[%clk 0:02:48.4]}
5... Bf5 {[%clk 0:02:55.4]} 6. Nf3 {[%clk 0:02:46.7]} 6... e6 {[%clk 0:02:52.9]}
7. Be2 {[%clk 0:02:45.2]} 7... Nge7 {[%clk 0:02:37.3]} 8. O-O {[%clk 0:02:44.6]}
8... Nc8 {[%clk 0:02:29.3]} 9. Nbd2 {[%clk 0:02:31.6]} 9... Qb6 {[%clk
0:02:26.9]} 10. Nb3 {[%clk 0:02:23.9]} 10... c4 {[%clk 0:02:22.4]} 11. Nbd2
{[%clk 0:02:23.5]} 11... h6 {[%clk 0:02:15.7]} 12. Re1 {[%clk 0:02:19.9]} 12...
Be7 {[%clk 0:02:16.2]} 13. Nf1 {[%clk 0:02:16.8]} 13... Qc7 {[%clk 0:02:09.5]}
14. Ng3 {[%clk 0:02:15.7]} 14... Bg6 {[%clk 0:01:59.6]} 15. Nh2 {[%clk
0:02:07.8]} 15... Nb6 {[%clk 0:01:53.5]} 16. Bh5 {[%clk 0:02:06.7]} 16... Bxh5
{[%clk 0:01:47.4]} 17. Nxh5 {[%clk 0:02:08.6]} 17... g6 {[%clk 0:01:46.9]} 18.
Ng3 {[%clk 0:01:50.5]} 18... O-O-O {[%clk 0:01:47.2]} 19. Qf3 {[%clk 0:01:46.9]}
19... Rdf8 {[%clk 0:01:42.7]} 20. Ng4 {[%clk 0:01:46.4]} 20... h5 {[%clk
0:01:29.8]} 21. Nf6 {[%clk 0:01:46]} 21... Bxf6 {[%clk 0:01:24.4]} 22. exf6
{[%clk 0:01:31.4]} 22... h4 {[%clk 0:01:12.4]} 23. Nf1 {[%clk 0:01:19.6]} 23...
Rh5 {[%clk 0:01:12.6]} 24. Ne3 {[%clk 0:01:13.3]} 24... Nd7 {[%clk 0:01:09.1]}
25. Ng4 {[%clk 0:00:41.6]} 25... Rf5 {[%clk 0:01:01.7]} 26. Qe2 {[%clk
0:00:40.7]} 26... Nxf6 {[%clk 0:00:53.9]} 27. Bh6 {[%clk 0:00:38.4]} 27... Rg8
{[%clk 0:00:44.9]} 28. Nxf6 {[%clk 0:00:31.6]} 28... Rxf6 {[%clk 0:00:45]} 29.
Bg5 {[%clk 0:00:28.5]} 29... Rf5 {[%clk 0:00:45.2]} 30. Bxh4 {[%clk 0:00:29.9]}
30... Rh8 {[%clk 0:00:26.9]} 31. Bg3 {[%clk 0:00:30]} 31... Qe7 {[%clk
0:00:14.7]} 32. Qd2 {[%clk 0:00:18.3]} 32... g5 {[%clk 0:00:09.6]} 33. Re2
{[%clk 0:00:15.2]} 33... f6 {[%clk 0:00:06.1]} 34. Rae1 {[%clk 0:00:14.7]} 34...
Nd8 {[%clk 0:00:07.1]} 35. Qc2 {[%clk 0:00:14.8]} 35... Qd7 {[%clk 0:00:07.4]}
36. Rxe6 {[%clk 0:00:11.3]} 36... Nxe6 {[%clk 0:00:03.5]} 37. Qxf5 {[%clk
0:00:12.2]} 37... Nd8 {[%clk 0:00:02.3]} 38. Qxf6 {[%clk 0:00:12.3]} 1-0

[Event "*** Qualifier 3: Titled Tuesday 3|2 Blitz"]
[Site "Chess.com"]
[Date "2017.04.18"]
[Round "3"]
[White "Grebeniuk-S"]
[Black "cheese111"]
[Result "1/2-1/2"]
[WhiteElo "2408"]
[BlackElo "2261"]
[TimeControl "180+2"]
[EndTime "13:40:43 PDT"]
[Termination "Game drawn by repetition"]

1. d4 {[%clk 0:03:02]} 1... Nf6 {[%clk 0:02:58.9]} 2. Nf3 {[%clk 0:03:01.2]}
2... g6 {[%clk 0:02:59.7]} 3. Bg5 {[%clk 0:03:02.7]} 3... Bg7 {[%clk 0:02:59.3]}
4. Nbd2 {[%clk 0:03:04.1]} 4... O-O {[%clk 0:02:59.8]} 5. c3 {[%clk 0:03:04.8]}
5... d6 {[%clk 0:03:00.7]} 6. e4 {[%clk 0:03:06.1]} 6... c5 {[%clk 0:03:01.9]}
7. dxc5 {[%clk 0:03:07]} 7... dxc5 {[%clk 0:03:03.8]} 8. Qc2 {[%clk 0:03:08.6]}
8... Nc6 {[%clk 0:03:04.2]} 9. Bb5 {[%clk 0:03:08.7]} 9... Qc7 {[%clk 0:03:00]}
10. a4 {[%clk 0:03:04.5]} 10... Be6 {[%clk 0:02:57.2]} 11. O-O {[%clk
0:03:04.6]} 11... Rfd8 {[%clk 0:02:54.3]} 12. Rfe1 {[%clk 0:03:05.1]} 12... b6
{[%clk 0:02:19.5]} 13. Bh4 {[%clk 0:03:03.2]} 13... Nh5 {[%clk 0:02:06.4]} 14.
Bxc6 {[%clk 0:02:51.6]} 14... Qxc6 {[%clk 0:02:08.3]} 15. Bxe7 {[%clk
0:02:52.9]} 15... Rd7 {[%clk 0:02:01.3]} 16. Bh4 {[%clk 0:02:42.8]} 16... Nf4
{[%clk 0:02:01.8]} 17. Red1 {[%clk 0:02:24.1]} 17... h6 {[%clk 0:01:55.5]} 18.
Nf1 {[%clk 0:02:14.3]} 18... g5 {[%clk 0:01:40]} 19. Bg3 {[%clk 0:02:14]} 19...
Rad8 {[%clk 0:01:27.9]} 20. Rxd7 {[%clk 0:01:50.7]} 20... Qxd7 {[%clk
0:01:26.2]} 21. a5 {[%clk 0:01:45]} 21... b5 {[%clk 0:00:56.6]} 22. Ne3 {[%clk
0:01:40.4]} 22... a6 {[%clk 0:00:42.2]} 23. Rd1 {[%clk 0:01:38.4]} 23... Nd3
{[%clk 0:00:41.1]} 24. Ne5 {[%clk 0:01:13.8]} 24... Bxe5 {[%clk 0:00:33.2]} 25.
Bxe5 {[%clk 0:01:15.7]} 25... c4 {[%clk 0:00:17.2]} 26. Bf6 {[%clk 0:01:15.8]}
26... Rc8 {[%clk 0:00:17.7]} 27. b4 {[%clk 0:01:14.1]} 27... Qb7 {[%clk
0:00:13]} 28. f3 {[%clk 0:01:08.8]} 28... Qa7 {[%clk 0:00:13.8]} 29. Bd4 {[%clk
0:01:10.2]} 29... Qe7 {[%clk 0:00:13.9]} 30. Rxd3 {[%clk 0:00:51.2]} 30... cxd3
{[%clk 0:00:13.7]} 31. Qxd3 {[%clk 0:00:53.1]} 31... Qd6 {[%clk 0:00:12.9]} 32.
g3 {[%clk 0:00:52]} 32... Rd8 {[%clk 0:00:07]} 33. Kf2 {[%clk 0:00:52.5]} 33...
f6 {[%clk 0:00:03.9]} 34. Qe2 {[%clk 0:00:51.5]} 34... Kf7 {[%clk 0:00:04.6]}
35. Ng2 {[%clk 0:00:52.8]} 35... Qc6 {[%clk 0:00:05]} 36. h4 {[%clk 0:00:47.3]}
36... Re8 {[%clk 0:00:05.1]} 37. h5 {[%clk 0:00:41.8]} 37... Bc4 {[%clk
0:00:04.3]} 38. Qd2 {[%clk 0:00:36.7]} 38... f5 {[%clk 0:00:05]} 39. e5 {[%clk
0:00:32.7]} 39... Bd5 {[%clk 0:00:04.6]} 40. Qe3 {[%clk 0:00:33.4]} 40... Qe6
{[%clk 0:00:04.6]} 41. Ne1 {[%clk 0:00:34.3]} 41... Rc8 {[%clk 0:00:04.9]} 42.
Nd3 {[%clk 0:00:35.2]} 42... Kg8 {[%clk 0:00:05.2]} 43. Nc5 {[%clk 0:00:36.3]}
43... Qf7 {[%clk 0:00:05.1]} 44. e6 {[%clk 0:00:33.1]} 44... Qxh5 {[%clk
0:00:06]} 45. Qe5 {[%clk 0:00:24]} 45... Qxf3+ {[%clk 0:00:05.7]} 46. Ke1 {[%clk
0:00:24.2]} 46... Qh1+ {[%clk 0:00:06.3]} 47. Kd2 {[%clk 0:00:25.3]} 47... Qg2+
{[%clk 0:00:07.3]} 48. Ke1 {[%clk 0:00:23.4]} 48... Qh1+ {[%clk 0:00:08.4]} 49.
Ke2 {[%clk 0:00:21]} 49... Qf3+ {[%clk 0:00:09.3]} 50. Kd2 {[%clk 0:00:21.2]}
50... Qg2+ {[%clk 0:00:10.4]} 51. Kc1 {[%clk 0:00:22.5]} 51... Qh1+ {[%clk
0:00:10.9]} 52. Kd2 {[%clk 0:00:20.5]} 52... Qg2+ {[%clk 0:00:11.9]} 53. Ke1
{[%clk 0:00:20.4]} 53... Qh1+ {[%clk 0:00:12.7]} 1/2-1/2